fUSD/lending_fUSD_20241031
["ID","MTS","AMOUNT","RATE_DAILY","PERIOD"]
[341077241,1730345427691,-419.26,0.0001599,2]
[341077242,1730345427713,-203.34990953,0.0001599,2]
[341077243,1730345427735,-300.0,0.00015999,2]
[341077244,1730345427758,-5896.42094158,0.00016,2]
[341077258,1730345431900,-841.56750115,0.00016,2]
[341077264,1730345432068,-7224.38589391,0.00016,2]
[341077265,1730345432080,-526.66203378,0.00016,2]
[341077266,1730345432092,-24754.18,0.00016,2]
[341077267,1730345432105,-503.67054002,0.00016,2]
[341077268,1730345432209,-108000.00003427,0.00016,2]
[341077269,1730345432221,-1233.71751728,0.00016,2]
[341077270,1730345432232,-2856.53146261,0.00016,2]
[341077271,1730345432243,-9652.37778613,0.00016,2]
[341077311,1730345437972,-2749.56740305,0.00016,2]
[341077312,1730345437984,-1682.74138119,0.00016,2]
[341077313,1730345438103,-439.91029905,0.00016,2]
[341077314,1730345438113,-892.60359232,0.00016,2]
[341077315,1730345438124,-11547.32135653,0.00016,2]
[341077316,1730345438229,-24295.57467505,0.00016,2]
[341077317,1730345438240,-548.21073066,0.00016,2]
[341077318,1730345438251,-823.51516831,0.00016,2]
[341077319,1730345438262,-2820.66603228,0.00016,2]
[341077464,1730345440002,-1313.1571327,0.00016,2]
[341077493,1730345440354,-1886.52,0.00016,2]
[341077495,1730345440366,-7149.812,0.00016,2]
[341077497,1730345440376,-731.73975,0.00016,2]
[341077656,1730345443016,-949.915099,0.0001592,2]
[341077657,1730345443026,-948.324901,0.00016,2]
[341077658,1730345443038,-3300.47997698,0.00016,2]
[341077659,1730345443050,-5388.63959752,0.00016,2]
[341077660,1730345443061,-149985.71055896,0.00016,2]
[341077661,1730345443148,-6446.83820181,0.00016,2]
[341077662,1730345443272,-1711.80000004,0.00016,2]
[341077663,1730345445945,-271.26,0.00016,2]
[341077664,1730345446082,-49665.09026596,0.00016,2]
[341077665,1730345446284,-1572.7748,0.00016,2]
[341077669,1730345462624,155.81,0.00015342,2]
[341077674,1730345868256,550.0,0.00015,2]
[341077675,1730346211135,156.37,0.00015342,2]
[341078261,1730346632549,-3429.47675619,0.00015504,2]
[341078262,1730346632558,-241.21211883,0.0001558,2]
[341078263,1730346632568,-403.94583407,0.00015604,2]
[341078264,1730346632577,-487.586,0.0001568,2]
[341078265,1730346632586,-241.21211881,0.000158,2]
[341078267,1730346632596,-417.78850633,0.00015818,2]
[341078268,1730346632605,-150.0,0.00015822,2]
[341078269,1730346632614,-979.19844237,0.000159,2]
[341078270,1730346632623,-859.90810891,0.000159,2]
[341078271,1730346632632,-175.4243202,0.000159,2]
[341078272,1730346632642,-388.61303376,0.000159,2]
[341078273,1730346632651,-172.54072296,0.00015903,2]
[341078274,1730346632660,-170.83779692,0.00015903,2]
[341078275,1730346632670,-500.0,0.00015973,2]
[341078276,1730346632679,-125.85364267,0.0001599,2]
[341078285,1730346640404,-350.8587452,0.0001599,2]
[341078286,1730346640417,-2090.36853939,0.0001599,2]
[341078287,1730346640426,-2708.64,0.0001599,2]
[341078288,1730346640435,-422.86313535,0.00015999,2]
[341078289,1730346640445,-3874.7720564,0.00016,2]
[341078290,1730346640456,-8947.21879473,0.00016,2]
[341078291,1730346640467,-8943.78386462,0.00016,2]
[341078292,1730346640478,-9077.54866152,0.00016,2]
[341078293,1730346640489,-8943.84023489,0.00016,2]
[341078301,1730346643615,-310.52251402,0.00016,2]
[341078329,1730346646443,-414.89147198,0.00016,2]
[341078330,1730346646672,-522.619975,0.00016,2]
[341078332,1730346685916,11694.0,0.00016562,3]
[341078336,1730346742076,93.63,0.00015342,2]
[341078337,1730346742097,62.25,0.00015342,2]
[341078338,1730347023007,-300.0,0.000158,2]
[341078339,1730347025451,-980.8634175,0.000158,2]
[341078340,1730347028446,189.99,0.00019726,3]
[341078341,1730347112799,-642.373,0.0001568,2]
[341078342,1730347188371,-173.62787862,0.000158,2]
[341078343,1730347203406,-500.0,0.00015899,2]
[341078344,1730347203954,-500.0,0.00015899,2]
[341078345,1730347205708,-182.77169711,0.00015899,2]
[341078347,1730347238218,157.38,0.00015342,2]
[341078358,1730347671718,550.0,0.00015,2]
[341078532,1730347754044,30.37,0.00015342,2]
[341078534,1730347754065,126.64,0.00015342,2]
[341078751,1730347832033,-172.54072295,0.00015901,2]
[341078752,1730347832043,-300.0,0.00015903,2]
[341078753,1730347832054,-45.3143891,0.00015904,2]
[341078754,1730347832066,-1273.0286153,0.00015904,2]
[341078755,1730347832085,-6480.7731077,0.00015904,2]
[341078756,1730347832095,-865.52082476,0.00015904,2]
[341078757,1730347832104,-204.95719907,0.0001599,2]
[341078758,1730347832113,-204.95719907,0.0001599,2]
[341078759,1730347832122,-9012.00182205,0.0001599,2]
[341078760,1730347832131,-300.0,0.00015999,2]
[341078761,1730347832139,-83236.1246587,0.00016,2]
[341078762,1730347832150,-4787.60419941,0.00016,2]
[341078763,1730347832161,-218916.8102456,0.00016,2]
[341078764,1730347832174,-3012.42370077,0.00016,2]
[341078765,1730347832186,-2381.48970547,0.00016,2]
[341078766,1730347832200,-784.65653678,0.00016,2]
[341078767,1730347832212,-2130.44985288,0.00016,2]
[341078768,1730347832226,-827.13712285,0.00016,2]
[341078769,1730347832240,-18850.97946058,0.00016,2]
[341078770,1730347832251,-7151.59550823,0.00016,2]
[341078771,1730347832264,-696.63711264,0.00016,2]
[341078772,1730347832277,-113129.44859053,0.00016,2]
[341078773,1730347832303,-1555.48465078,0.00016,2]
[341078774,1730347832315,-812.9464343,0.00016,2]
[341078781,1730347838138,-516.07115909,0.00016,2]
[341078782,1730347838149,-1051.27520469,0.00016,2]
[341078783,1730347838162,-559.12249875,0.00016,2]
[341078784,1730347838220,-7584.95772342,0.00016,2]
[341078785,1730347838232,-310.94498237,0.00016,2]
[341078786,1730347840103,-630.25841339,0.00016,2]
[341078787,1730347840115,-662.70634916,0.00016,2]
[341078788,1730347840156,-345.49846426,0.00016,2]
[341078789,1730347840167,-2170.88474938,0.00016,2]
[341078790,1730347840178,-1895.093321,0.00016,2]
[341078791,1730347840262,-2954.1894928,0.00016,2]
[341078792,1730347840273,-550.50093868,0.00016,2]
[341078793,1730347840317,-1593.75750387,0.00016,2]
[341078794,1730347840328,-2749.98978182,0.00016,2]
[341078795,1730347840371,-2537.03952318,0.00016,2]
[341078796,1730347840441,-4465.35320515,0.00016,2]
[341078797,1730347840452,-807.664508,0.00016,2]
[341078798,1730347840464,-852.22895866,0.00016,2]
[341078799,1730347840475,-2459.80294293,0.00016,2]
[341078800,1730347840486,-756.45211275,0.00016,2]
[341079332,1730348017062,-448.83889,0.0001582,2]
[341079333,1730348093429,-4376.4702,0.000159,2]
[341079334,1730348227864,-475.51576362,0.000159,2]
[341079335,1730348227888,-175.42432018,0.00015904,2]
[341079336,1730348227911,-5199.4107414,0.00015904,2]
[341079337,1730348227940,-577.01388318,0.00015904,2]
[341079338,1730348227967,-151.22161247,0.00015999,2]
[341079339,1730348227989,-1369.86701277,0.00015999,2]
[341079340,1730348228012,-288.0,0.00015999,2]
[341079341,1730348228036,-241763.54666638,0.00016,2]
[341079342,1730348262743,-2250000.0,0.00016,2]
[341079343,1730348300616,-1845.9173,0.000159,2]
[341079344,1730348313253,-715.742,0.0001568,2]
[341079345,1730348394110,161.24,0.00015342,2]
[341079348,1730348733543,-3466.2738276,0.000159,2]
[341079349,1730348736089,-3842.8042724,0.000159,2]
[341079353,1730348798892,150.0,0.00021,3]
[341079360,1730348831161,-175.42432018,0.000159,2]
[341079373,1730348849754,-384.67592212,0.000159,2]
[341079382,1730348873716,-3466.2738276,0.000159,2]
[341079383,1730348888121,-1005.15475907,0.000159,2]
[341079397,1730348974507,-183.02514764,0.000159,2]
[341079398,1730348979902,-256.45061474,0.000159,2]
[341079407,1730349009617,-2310.8492184,0.000159,2]
[341079434,1730349032195,-159.83968,0.00015973,2]
[341079436,1730349032205,-1737.4795329,0.00015994,2]
[341079437,1730349032214,-1189.58078709,0.00016,2]
[341079487,1730349038212,-338.90011948,0.00016,2]
[341079490,1730349038434,-1966.89684553,0.00016,2]
[341079491,1730349038491,-661.09988052,0.00016,2]
[341079492,1730349038503,-954.046,0.00016,2]
[341079493,1730349038516,-28954.1953034,0.00016,2]
[341079494,1730349038658,-13599.06947283,0.00016,2]
[341079669,1730349043411,-1308.29614655,0.00016,2]
[341079670,1730349043423,-5008.76610788,0.00016,2]
[341079671,1730349043476,-3408.01,0.00016,2]
[341079672,1730349043533,-1748.08100501,0.00016,2]
[341079673,1730349043546,-1345.7198549,0.00016,2]
[341079675,1730349046595,-52284.23501416,0.00016,2]
[341079676,1730349046652,-3676.8728,0.00016,2]
[341079683,1730349088043,-262.78646843,0.000159,2]
[341079684,1730349110157,-170.9670765,0.000159,2]
[341079685,1730349144547,-1540.5661456,0.000159,2]
[341079686,1730349279088,-1027.04409708,0.000159,2]
[341079688,1730349382811,156.04,0.00015342,2]
[341079689,1730349403185,-1029.40517232,0.000159,2]
[341079690,1730349414217,-684.69606472,0.000159,2]
[341079691,1730349475196,550.0,0.00015,2]
[341079692,1730349512768,-572.593,0.0001568,2]
[341079693,1730349528796,-7744.2295,0.000159,2]
[341079694,1730349528818,-150.0,0.00015999,2]
[341079695,1730349528841,-7182513.49073585,0.00016,2]
[341079696,1730349528864,-550641.68332346,0.00016,2]
[341079697,1730349588423,-7894.2295,0.00016,2]
[341079698,1730349733210,412.02284723,0.00015794,2]
[341079699,1730349919611,151.46,0.00015342,2]
[341079701,1730349929739,150.0,0.00021,3]
[341079702,1730349932455,150.0,0.00021,3]
[341079759,1730350184871,-300.0,0.00016141,2]
[341079760,1730350184892,-10739.966997,0.00016142,2]
[341079769,1730350231510,-2362.5693191,0.00016142,2]
[341079770,1730350231520,-150.0,0.00016461,2]
[341079771,1730350231532,-2655.0,0.00017952,2]
[341079772,1730350231543,-2001.16,0.00019726,2]
[341079773,1730350231554,-2000.0,0.00021,2]
[341079774,1730350231564,-289.0,0.000253,2]
[341079775,1730350231576,-188.34988081,0.00027397,30]
[341079776,1730350231587,-216.18382016,0.0003,2]
[341079777,1730350231597,-6369.1947204,0.0003,2]
[341079778,1730350231607,-1714.0,0.000312,2]
[341079779,1730350231620,-5398.33,0.00033375,2]
[341079780,1730350231632,-184.42,0.00033744,2]
[341079781,1730350231643,-28217.77674879,0.0003399,2]
[341079782,1730350231653,-221.62,0.00034013,2]
[341079783,1730350231664,-1003.34,0.00034042,2]
[341079784,1730350231676,-250.0,0.00034585,2]
[341079785,1730350231688,-161.78,0.00034856,2]
[341079786,1730350231698,-170.33,0.0003508,120]
[341079787,1730350231708,-181.31,0.00035091,2]
[341079788,1730350231718,-250.0,0.00035195,120]
[341079789,1730350231727,-150.0,0.00035234,7]
[341079790,1730350231736,-1000.0,0.00035399,2]
[341079791,1730350231746,-212.21,0.00035953,2]
[341079793,1730350231756,-13523.47,0.00036004,2]
[341079795,1730350231768,-484.87,0.0003618,2]
[341079797,1730350231777,-1003.34,0.00036306,2]
[341079799,1730350231787,-179.86,0.00036805,2]
[341079802,1730350231800,-180.87,0.0003719,120]
[341079804,1730350231811,-23900.0,0.00037667,2]
[341079806,1730350231822,-289.05,0.00037966,2]
[341079808,1730350231832,-1003.34,0.0003857,2]
[341079810,1730350231844,-645.02370782,0.00038945,2]
[341079812,1730350231853,-572.594,0.0003926,54]
[341079814,1730350231862,-1000.0,0.00039824,2]
[341079815,1730350231871,-1003.34,0.00040834,2]
[341079817,1730350231880,-999.0,0.00041095,120]
[341079819,1730350231890,-153.55,0.00041096,2]
[341079821,1730350231899,-999.0,0.0004178,120]
[341079823,1730350231908,-151.0,0.0004178,2]
[341079825,1730350231917,-1798.502,0.0004228,2]
[341079827,1730350231926,-27071.44875158,0.0004228,2]
[341079829,1730350231937,-2786.09183497,0.0004228,2]
[341079831,1730350231948,-290.832,0.0004228,2]
[341079833,1730350231958,-5944.47671345,0.0004228,2]
[341079834,1730350231967,-5923.502,0.0004228,2]
[341079836,1730350231976,-1310.9420616,0.00042365,15]
[341079838,1730350231985,-63640.07988129,0.0004238,2]
[341079839,1730350231995,-945.00050386,0.0004238,2]
[341079840,1730350239412,-2896.58360006,0.0004238,2]
[341079841,1730350239424,-25225.61176312,0.0004238,2]
[341079842,1730350239433,-1000.0,0.0004238,2]
[341079843,1730350239443,-999.0,0.00042465,120]
[341079844,1730350239453,-2719.0,0.00042684,3]
[341079845,1730350239466,-1003.34,0.00043098,2]
[341079846,1730350239477,-999.0,0.0004315,120]
[341079847,1730350239486,-515.29495992,0.0004315,2]
[341079848,1730350239495,-658.20175,0.00043246,14]
[341079849,1730350239507,-180.87,0.00043388,120]
[341079850,1730350239517,-1310.94206156,0.00043424,15]
[341079851,1730350239527,-1180.99234531,0.00043744,2]
[341079852,1730350239536,-1180.99234531,0.00043811,2]
[341079853,1730350239546,-999.0,0.00043835,120]
[341079854,1730350239555,-1180.99234531,0.00043836,2]
[341079855,1730350239564,-1180.99234531,0.00043845,2]
[341079856,1730350239573,-1180.99234531,0.00043932,2]
[341079857,1730350239583,-1180.99234531,0.0004399,2]
[341079858,1730350239592,-211.98049376,0.00044213,7]
[341079859,1730350239601,-236.0,0.00044213,4]
[341079860,1730350239611,-1000.0,0.00044249,2]
[341079861,1730350239621,-1310.94206156,0.00044484,15]
[341079862,1730350239631,-999.0,0.0004452,120]
[341079863,1730350239641,-999.0,0.00045205,120]
[341079864,1730350239652,-1003.34,0.00045362,2]
[341079865,1730350239663,-1310.94206156,0.00045543,15]
[341079866,1730350239673,-151.46,0.00045753,2]
[341079867,1730350239683,-999.0,0.0004589,120]
[341079868,1730350239693,-999.0,0.00046575,120]
[341079869,1730350239704,-476.19873005,0.00046603,15]
[341079870,1730350239716,-834.74333151,0.00046603,15]
[341079871,1730350239725,-434.65759651,0.0004726,120]
[341079872,1730350239734,-1003.34,0.00047626,2]
[341079873,1730350239744,-454.27754608,0.00047662,15]
[341079887,1730350242873,-856.66451548,0.00047662,15]
[341079888,1730350242883,-153.55,0.00047945,2]
[341079889,1730350242993,-9281.78,0.00048339,7]
[341079890,1730350243003,-9281.78,0.00048339,7]
[341079891,1730350243013,-63.46468758,0.00048339,7]
[341079937,1730350396256,157.11,0.00015342,2]
[341079939,1730350893292,158.55,0.00015342,2]
[341079954,1730351277496,550.0,0.00015,2]
[341080173,1730351399095,161.24,0.00015342,2]
[341080180,1730351431575,-600.0,0.00017,2]
[341080181,1730351431587,-300.0,0.00017259,2]
[341080182,1730351431598,-500.0,0.0001726,2]
[341080183,1730351431609,-182.77169711,0.0001726,2]
[341080184,1730351431619,-150.0,0.00017324,2]
[341080185,1730351431630,-1709.20175682,0.00017487,2]
[341080186,1730351431689,-6313.62334415,0.00017487,2]
[341080187,1730351431699,-420.0,0.00018846,2]
[341080188,1730351431710,-650.0,0.00019,2]
[341080189,1730351431721,-173.62787862,0.00019525,2]
[341080190,1730351431732,-587.0,0.00020578,2]
[341080191,1730351431743,-700.0,0.00021,2]
[341080192,1730351431754,-823.0,0.0002247,2]
[341080193,1730351431766,-750.0,0.00023,2]
[341080194,1730351431777,-202.999999,0.0002402,2]
[341080195,1730351431786,-274.0,0.000243,2]
[341080196,1730351431796,-210.0,0.00024536,2]
[341080197,1730351431807,-250.0,0.00038058,120]
[341080198,1730351431818,-23900.0,0.00038448,2]
[341080199,1730351431828,-200.0,0.00042691,2]
[341080200,1730351431838,-600.0,0.00043586,2]
[341080201,1730351431851,-680.71,0.0004371,2]
[341080202,1730351431862,-500.0,0.00043882,4]
[341080203,1730351431872,-500.0,0.00043891,4]
[341080204,1730351431882,-500.0,0.000439,4]
[341080205,1730351431892,-241.78323585,0.0004422,120]
[341080206,1730351431902,-274.303298,0.0004422,120]
[341080207,1730351431912,-158.55,0.00045753,2]
[341080208,1730351431923,-58861.85633421,0.00046701,2]
[341080209,1730351431935,-506.14658476,0.00046701,2]
[341080210,1730351431947,-2704.11559046,0.00046701,2]
[341080211,1730351431960,-427.88149057,0.00046701,2]
[341080212,1730351431970,-400.0,0.00046706,2]
[341080214,1730351431980,-150.0,0.00047194,7]
[341080216,1730351431991,-725.15,0.00047223,2]
[341080218,1730351432001,-201.48,0.00047305,2]
[341080219,1730351432011,-2123.97834039,0.00047451,2]
[341080220,1730351432023,-420.98804803,0.00047451,2]
[341080224,1730351437741,-276.14857609,0.00017159,2]
[341080225,1730351437753,-1004.71484141,0.00017159,2]
[341080226,1730351437763,-528.84415166,0.00047451,2]
[341080227,1730351437917,-2770.60908828,0.00047451,2]
[341080228,1730351437928,-350.51512911,0.00047451,2]
[341080229,1730351437940,-541.90799385,0.00047451,2]
[341080385,1730351439596,-492.73427478,0.00047451,2]
[341080402,1730351439758,-552.33090042,0.00047451,2]
[341080409,1730351439815,-54718.09207348,0.00047451,2]
[341080411,1730351439826,-250.0,0.00047751,120]
[341080412,1730351439835,-157.64892301,0.00047944,2]
[341080414,1730351439844,-104347.00917591,0.00048,10]
[341080418,1730351439874,-556.34888815,0.00048,10]
[341080431,1730351439986,-7371.30578227,0.00048,10]
[341080693,1730351442729,-4.00295365,0.00048,10]
[341080695,1730351442740,-5438.08352596,0.00048,10]
[341080714,1730351442926,-597.62054,0.00048,10]
[341080716,1730351442938,-710.86,0.00048,10]
[341080718,1730351442949,-3403.57410001,0.00048,10]
[341080720,1730351442959,-4846.42589999,0.00048201,2]
[341080722,1730351442971,-276.03551163,0.00048201,2]
[341080724,1730351442982,-1381.18793136,0.00048201,2]
[341080763,1730351445782,-1411.53865048,0.00048201,2]
[341080764,1730351445841,-20933.10060448,0.00048201,2]
[341080765,1730351445853,-1176.14110748,0.00048201,2]
[341080766,1730351445865,-507.83157245,0.00048201,2]
[341080767,1730351445878,-279.04774997,0.00048201,2]
[341080768,1730351446095,-25171.65805547,0.00048201,2]
[341080769,1730351446107,-1339.58,0.00048201,2]
[341080771,1730351446119,-3836.184991,0.00048201,2]
[341080777,1730351967012,155.69,0.00015342,2]
[341080779,1730352308282,464133.07,0.00016,2]
[341080780,1730352308323,1189684.34,0.00016,2]
[341080781,1730352308382,2000000.0,0.00016,2]
[341080782,1730352308413,192000.0,0.00016,2]
[341080783,1730352308453,2000000.0,0.00016,2]
[341080784,1730352308481,1734161.81376377,0.00016,2]
[341080785,1730352308510,250000.0,0.00016,2]
[341080786,1730352325977,976.04576291,0.000108,2]
[341080790,1730352356946,-9848.87201941,0.000159,2]
[341080791,1730352358241,268.81308256,0.00014,2]
[341080792,1730352419394,1996.19383826,0.000145,2]
[341080804,1730352443905,300.0,0.000158,5]
[341080806,1730352446042,700.0,0.000159,5]
[341080821,1730352484135,73051.49780439,0.000145,3]
[341080822,1730352484159,14901.65942764,0.000145,3]
[341080823,1730352493499,1185.30000004,0.00013,4]
[341080881,1730352631790,-2527.75,0.000159,2]
[341080882,1730352631801,-5457.60182006,0.000159,2]
[341080883,1730352631810,-500.0,0.00015973,2]
[341080884,1730352631820,-271.72346693,0.0001599,2]
[341080885,1730352631829,-16629.72077274,0.00016,2]
[341080886,1730352631840,-6337.07876168,0.00016,2]
[341080887,1730352631853,-2982.954594,0.00016,2]
[341080888,1730352631864,-106006.4208502,0.00016,2]
[341080889,1730352631875,-14189.81083739,0.00016,2]
[341080890,1730352631887,-500.0,0.00016,2]
[341080891,1730352631897,-967.52855281,0.00016,2]
[341080892,1730352631908,-561.75930824,0.00016,2]
[341080893,1730352631967,-9392.69226993,0.00016,2]
[341080894,1730352631978,-1433.86091124,0.00016,2]
[341080895,1730352631989,-1092.24,0.00016,2]
[341080896,1730352632034,-2334.45599337,0.00016,2]
[341080897,1730352632095,-26549.27114751,0.00016,2]
[341080904,1730352637899,-65541.37503182,0.00016,2]
[341080953,1730352639803,-4829.04030226,0.00016,2]
[341080955,1730352639813,-1074.7,0.00016,2]
[341080961,1730352639865,-574.0,0.00016,2]
[341080968,1730352639931,-1009.71667059,0.00016,2]
[341080970,1730352639944,-538.75,0.00016,2]
[341080980,1730352640042,-2969.13831216,0.00016,2]
[341081243,1730352642798,-859.7999,0.00016,2]
[341081261,1730352642968,-376.17819724,0.00016,2]
[341081267,1730352643086,-5089.9602842,0.00016,2]
[341081530,1730352645835,-2007.98659,0.00016,2]
[341081547,1730352646000,-1789.37478954,0.00016,2]
[341081549,1730352646011,-806.41047797,0.00016,2]
[341081561,1730352646120,-9385.13420665,0.00016,2]
[341081562,1730352646133,-13691.14335531,0.00016,2]
[341081584,1730352703368,153.85,0.00015342,2]
[341081585,1730352753457,-150.0,0.0001584,2]
[341081586,1730353314985,-1088.651,0.0001568,2]
[341081587,1730353315010,-1995.0,0.00015682,2]
[341081588,1730353315034,-300.0,0.00015839,2]
[341081589,1730353315056,-150.0,0.0001584,2]
[341081590,1730353315079,-150.0,0.0001584,2]
[341081591,1730353315101,-150.0,0.0001584,2]
[341081592,1730353315123,-150.0,0.0001584,2]
[341081593,1730353315145,-150.0,0.0001584,2]
[341081594,1730353315166,-150.0,0.0001584,2]
[341081595,1730353315188,-150.0,0.0001584,2]
[341081596,1730353315210,-150.0,0.0001584,2]
[341081597,1730353315231,-150.0,0.0001584,2]
[341081598,1730353315252,-150.0,0.0001584,2]
[341081599,1730353315273,-150.0,0.0001584,2]
[341081600,1730353315295,-150.0,0.0001584,2]
[341081601,1730353315316,-150.0,0.0001584,2]
[341081602,1730353315337,-213.97727608,0.0001584,2]
[341081603,1730353315358,-23926.8023,0.000159,2]
[341081604,1730353315379,-150.0,0.00015979,2]
[341081605,1730353315401,-181.14897796,0.0001599,2]
[341081606,1730353315424,-750194.42044596,0.00016,2]
[341081607,1730353434091,160.35,0.00015342,2]
[341081723,1730353721274,150.0,0.000205,3]
[341082064,1730353831946,-424.6858336,0.00015684,2]
[341082066,1730353831957,-1618.3259,0.000159,2]
[341082068,1730353831967,-315.3083,0.000159,2]
[341082070,1730353831978,-221.5449723,0.00015905,2]
[341082072,1730353831988,-150.0,0.00015983,2]
[341082074,1730353831999,-207.0404863,0.0001599,2]
[341082075,1730353832008,-171.18507684,0.00015999,2]
[341082076,1730353832018,-369912.81341463,0.00016,2]
[341082077,1730353832028,-1122.9424379,0.00016212,2]
[341082078,1730353832038,-157.08,0.00016712,2]
[341082079,1730353832048,-208.91623246,0.000172,2]
[341082080,1730353832058,-1100.57,0.000172,2]
[341082081,1730353832068,-701.21,0.0001726,2]
[341082082,1730353832077,-213.19166931,0.000174,2]
[341082083,1730353832087,-225.485,0.00019964,2]
[341082084,1730353832096,-34771.70250855,0.0002,2]
[341082085,1730353832111,-1122.94243786,0.00020177,2]
[341082086,1730353832121,-47595.77394058,0.00022,2]
[341082087,1730353832133,-13857.42491093,0.00022,2]
[341082088,1730353832143,-1051.97,0.00022109,2]
[341082089,1730353832152,-304.08090621,0.000224,2]
[341082090,1730353832162,-2471.10317532,0.000225,2]
[341082091,1730353832171,-201.85224744,0.00023,2]
[341082092,1730353832181,-214.17,0.0002355,2]
[341082093,1730353832190,-9181.08,0.00023707,2]
[341082094,1730353832200,-754.14,0.00023876,2]
[341082095,1730353832209,-1122.94243786,0.00024143,2]
[341082096,1730353832219,-1051.97,0.00024373,2]
[341082097,1730353832229,-23900.0,0.00024667,2]
[341082098,1730353832238,-360.69,0.00024769,2]
[341082100,1730353832248,-1068.1019,0.00025233,10]
[341082102,1730353832257,-5572.65,0.00025272,2]
[341082104,1730353832266,-335.79,0.0002552,2]
[341082106,1730353832275,-360.69,0.00025747,2]
[341082108,1730353832285,-179.57,0.00025958,2]
[341082110,1730353832294,-200.0,0.00025981,2]
[341082111,1730353832304,-186.18,0.00026075,2]
[341082113,1730353832313,-214.17,0.00026494,120]
[341082115,1730353832323,-1051.97,0.00026637,2]
[341082117,1730353832332,-360.69,0.00026725,2]
[341082119,1730353832341,-335.79,0.00026796,2]
[341082120,1730353832351,-150.22554331,0.00027157,2]
[341082121,1730353832360,-500.0,0.00027157,2]
[341082122,1730353832369,-150.0,0.00027397,7]
[341082124,1730353832379,-3346.03,0.00027595,2]
[341082126,1730353832387,-3346.03,0.00027603,2]
[341082128,1730353832397,-3346.03,0.0002761,2]
[341082130,1730353832406,-3346.03,0.00027617,2]
[341082132,1730353832415,-3346.03,0.00027624,2]
[341082134,1730353832424,-3346.03,0.00027632,2]
[341082136,1730353832433,-3346.03,0.00027639,2]
[341082138,1730353832442,-3346.03,0.00027646,2]
[341082140,1730353832451,-3346.03,0.00027654,2]
[341082141,1730353832460,-3346.03,0.00027661,2]
[341082144,1730353832470,-3346.03,0.00027668,2]
[341082145,1730353832479,-3346.03,0.00027675,2]
[341082147,1730353832488,-3346.03,0.00027683,2]
[341082149,1730353832498,-3346.03,0.0002769,2]
[341082151,1730353832506,-3346.03,0.00027697,2]
[341082153,1730353832515,-360.69,0.00027702,2]
[341082155,1730353832524,-3346.03,0.00027704,2]
[341082157,1730353832535,-3346.03,0.00027712,2]
[341082159,1730353832544,-3346.03,0.00027719,2]
[341082161,1730353832553,-3346.03,0.00027726,2]
[341082163,1730353832563,-3346.03,0.00027733,2]
[341082165,1730353832572,-335.79,0.00028072,2]
[341082166,1730353832581,-1122.94243786,0.00028108,2]
[341082168,1730353832590,-360.69,0.0002868,2]
[341082170,1730353832599,-447.96,0.00028705,2]
[341082172,1730353832610,-1051.97,0.00028901,2]
[341082174,1730353832619,-150.0,0.00028972,2]
[341082176,1730353832629,-152.13,0.00029222,2]
[341082178,1730353832638,-335.79,0.00029348,2]
[341082180,1730353832647,-214.17,0.00029438,120]
[341082182,1730353832657,-244.79552669,0.00029668,2]
[341082184,1730353832666,-62500.0,0.00029678,2]
[341082185,1730353832675,-5095.48316022,0.0003,2]
[341082187,1730353832685,-493.65125,0.0003,2]
[341082188,1730353832694,-3561.25025,0.0003,2]
[341082189,1730353832704,-154.98539,0.0003,7]
[341082190,1730353832713,-151.0,0.0003,7]
[341082191,1730353832723,-151.0,0.0003,7]